fUST/lending_fUST_20250219
["ID","MTS","AMOUNT","RATE_DAILY","PERIOD"]
[353554957,1739911844877,-500.0,0.00014109,2]
[353554958,1739911844887,-500.0,0.00014109,2]
[353554959,1739911844896,-500.0,0.00014109,2]
[353554960,1739911844906,-505.45,0.00014109,2]
[353554961,1739911844915,-500.0,0.00014109,2]
[353554962,1739911844924,-500.0,0.00014109,2]
[353554963,1739911844933,-500.0,0.00014109,2]
[353554964,1739911844943,-537.93,0.00014109,2]
[353554965,1739911844952,-610.18,0.00014109,2]
[353554966,1739911844962,-500.0,0.00014109,2]
[353554967,1739911844971,-500.0,0.00014109,2]
[353554968,1739911844980,-500.0,0.00014109,2]
[353554969,1739911844991,-500.0,0.00014109,2]
[353554970,1739911845002,-500.0,0.00014109,2]
[353554971,1739911845011,-500.0,0.00014109,2]
[353554972,1739911845021,-500.0,0.00014109,2]
[353554973,1739911845030,-723.16,0.00014109,2]
[353554974,1739911845040,-500.0,0.00014109,2]
[353554975,1739911845049,-341.48,0.00014109,2]
[353554976,1739911845058,-605.5,0.00014109,2]
[353554977,1739911845068,-500.0,0.00014109,2]
[353554978,1739911845077,-500.0,0.00014109,2]
[353554979,1739911845086,-500.0,0.00014109,2]
[353554980,1739911845096,-500.0,0.00014109,2]
[353554981,1739911845106,-500.0,0.00014109,2]
[353554982,1739911845115,-500.0,0.00014109,2]
[353554983,1739911845124,-500.0,0.00014109,2]
[353554984,1739911845135,-500.0,0.00014109,2]
[353554985,1739911845145,-500.0,0.00014109,2]
[353554986,1739911845156,-972.6,0.00014109,2]
[353554987,1739911845166,-484.26027064,0.00014109,2]
[353554988,1739911845175,-500.0,0.00014109,2]
[353554989,1739911845184,-1204.38,0.00014109,2]
[353554990,1739911845195,-500.0,0.00014109,2]
[353554991,1739911845204,-742.77,0.00014109,2]
[353554992,1739911845215,-652.29,0.00014109,2]
[353554993,1739911845223,-500.0,0.00014109,2]
[353554994,1739911845233,-500.0,0.00014109,2]
[353554995,1739911845243,-192.35,0.00014109,2]
[353554996,1739911845252,-7626.98,0.00014109,2]
[353554997,1739911845261,-500.0,0.00014109,2]
[353554998,1739911845270,-1143.16,0.00014109,2]
[353554999,1739911845280,-2611.08,0.00014109,2]
[353555000,1739911845289,-19236.83,0.00014109,2]
[353555001,1739911845298,-583.56,0.00014109,2]
[353555002,1739911845307,-520.31,0.00014109,2]
[353555003,1739911845317,-803.65,0.00014109,2]
[353555004,1739911845327,-1534.37,0.00014109,2]
[353555005,1739911845337,-500.0,0.00014109,2]
[353555006,1739911845346,-1344.1,0.00014109,2]
[353555007,1739911845356,-2802.64,0.00014109,2]
[353555008,1739911845366,-500.0,0.00014109,2]
[353555009,1739911845376,-500.0,0.00014109,2]
[353555010,1739911845386,-500.0,0.00014109,2]
[353555011,1739911845395,-500.89567574,0.00014109,2]
[353555012,1739911845404,-1530.52,0.00014109,2]
[353555013,1739911845414,-3919.27,0.00014109,2]
[353555014,1739911845423,-1626.48,0.00014109,2]
[353555015,1739911845433,-500.0,0.00014109,2]
[353555016,1739911845444,-613.82,0.00014109,2]
[353555017,1739911845453,-728.07,0.00014109,2]
[353555018,1739911845464,-500.0,0.00014109,2]
[353555019,1739911845473,-500.0,0.00014109,2]
[353555020,1739911845482,-536.5,0.00014109,2]
[353555021,1739911845491,-719.26,0.00014109,2]
[353555022,1739911845500,-702.77,0.00014109,2]
[353555023,1739911845510,-500.0,0.00014109,2]
[353555024,1739911845519,-500.0,0.00014109,2]
[353555025,1739911845528,-343.60001524,0.00014109,2]
[353555026,1739911845537,-500.0,0.00014109,2]
[353555027,1739911845547,-554.74,0.00014109,2]
[353555028,1739911845556,-500.0,0.00014109,2]
[353555029,1739911845565,-500.0,0.00014109,2]
[353555030,1739911845575,-1843.09,0.00014109,2]
[353555031,1739911845584,-500.0,0.00014109,2]
[353555032,1739911845595,-954.34,0.00014109,2]
[353555033,1739911845605,-810.51,0.00014109,2]
[353555034,1739911845615,-7438.69753278,0.00014121,2]
[353555035,1739911845625,-154.7234452,0.00014163,2]
[353555036,1739911845635,-154.7234452,0.00014163,2]
[353555037,1739911845644,-347.303,0.00014186,2]
[353555038,1739911845652,-500.0,0.00014191,2]
[353555039,1739911845659,-500.0,0.00014191,2]
[353555040,1739911845668,-500.0,0.00014191,2]
[353555041,1739911845677,-500.0,0.00014191,2]
[353555042,1739911845687,-500.0,0.00014191,2]
[353555043,1739911845697,-505.45,0.00014191,2]
[353555044,1739911845707,-208.89385453,0.00014191,2]
[353555045,1739911845716,-500.0,0.00014191,2]
[353555046,1739911845725,-537.93,0.00014191,2]
[353555047,1739911845734,-610.18,0.00014191,2]
[353555048,1739911845743,-500.0,0.00014191,2]
[353555049,1739911845753,-500.0,0.00014191,2]
[353555050,1739911845762,-500.0,0.00014191,2]
[353555051,1739911845772,-500.0,0.00014191,2]
[353555053,1739911845782,-500.0,0.00014191,2]
[353555054,1739911845791,-500.0,0.00014191,2]
[353555055,1739911845800,-500.0,0.00014191,2]
[353555056,1739911845812,-723.16,0.00014191,2]
[353555057,1739911845821,-500.0,0.00014191,2]
[353555058,1739911845830,-605.5,0.00014191,2]
[353555059,1739911845839,-500.0,0.00014191,2]
[353555060,1739911845848,-570.58,0.00014191,2]
[353555061,1739911845858,-500.0,0.00014191,2]
[353555062,1739911845867,-340.18,0.00014191,2]
[353555063,1739911845876,-500.0,0.00014191,2]
[353555065,1739911845887,-500.0,0.00014191,2]
[353555066,1739911845896,-500.0,0.00014191,2]
[353555067,1739911845906,-500.0,0.00014191,2]
[353555068,1739911845915,-972.6,0.00014191,2]
[353555069,1739911845925,-500.0,0.00014191,2]
[353555070,1739911845934,-1204.38,0.00014191,2]
[353555071,1739911845944,-500.0,0.00014191,2]
[353555072,1739911845955,-742.77,0.00014191,2]
[353555073,1739911845964,-652.29,0.00014191,2]
[353555074,1739911845975,-500.0,0.00014191,2]
[353555075,1739911845984,-500.0,0.00014191,2]
[353555076,1739911845994,-7626.98,0.00014191,2]
[353555077,1739911846003,-500.0,0.00014191,2]
[353555078,1739911846013,-1143.16,0.00014191,2]
[353555079,1739911846023,-2611.08,0.00014191,2]
[353555080,1739911846034,-19236.83,0.00014191,2]
[353555081,1739911846044,-583.56,0.00014191,2]
[353555082,1739911846053,-520.31,0.00014191,2]
[353555083,1739911846063,-803.65,0.00014191,2]
[353555084,1739911846072,-1534.37,0.00014191,2]
[353555085,1739911846081,-500.0,0.00014191,2]
[353555086,1739911846091,-1344.1,0.00014191,2]
[353555087,1739911846101,-2802.64,0.00014191,2]
[353555088,1739911846111,-500.0,0.00014191,2]
[353555089,1739911846121,-500.0,0.00014191,2]
[353555090,1739911846130,-500.0,0.00014191,2]
[353555091,1739911846140,-1530.52,0.00014191,2]
[353555092,1739911846150,-3919.27,0.00014191,2]
[353555094,1739911846163,-1626.48,0.00014191,2]
[353555096,1739911846172,-500.0,0.00014191,2]
[353555097,1739911846182,-613.82,0.00014191,2]
[353555098,1739911846191,-728.07,0.00014191,2]
[353555099,1739911846202,-500.0,0.00014191,2]
[353555100,1739911846211,-500.0,0.00014191,2]
[353555101,1739911846220,-536.5,0.00014191,2]
[353555102,1739911846230,-719.26,0.00014191,2]
[353555103,1739911846240,-702.77,0.00014191,2]
[353555104,1739911846250,-500.0,0.00014191,2]
[353555105,1739911846260,-500.0,0.00014191,2]
[353555106,1739911846269,-257.35514769,0.00014191,2]
[353555107,1739911846279,-554.74,0.00014191,2]
[353555108,1739911846289,-500.0,0.00014191,2]
[353555109,1739911846298,-500.0,0.00014191,2]
[353555110,1739911846308,-1843.09,0.00014191,2]
[353555111,1739911846318,-500.0,0.00014191,2]
[353555112,1739911846327,-954.34,0.00014191,2]
[353555113,1739911846336,-810.51,0.00014191,2]
[353555114,1739911846345,-3000.0,0.00014256,2]
[353555115,1739911846355,-542.51,0.00014273,2]
[353555116,1739911846365,-500.0,0.00014273,2]
[353555117,1739911846374,-500.0,0.00014273,2]
[353555118,1739911846384,-500.0,0.00014273,2]
[353555119,1739911846394,-505.45,0.00014273,2]
[353555120,1739911846403,-500.0,0.00014273,2]
[353555121,1739911846412,-537.93,0.00014273,2]
[353555122,1739911846422,-610.18,0.00014273,2]
[353555123,1739911846432,-500.0,0.00014273,2]
[353555124,1739911846441,-500.0,0.00014273,2]
[353555125,1739911846451,-500.0,0.00014273,2]
[353555126,1739911846461,-500.0,0.00014273,2]
[353555127,1739911846471,-500.0,0.00014273,2]
[353555128,1739911846480,-500.0,0.00014273,2]
[353555129,1739911846489,-500.0,0.00014273,2]
[353555130,1739911846498,-723.16,0.00014273,2]
[353555131,1739911846508,-500.0,0.00014273,2]
[353555132,1739911846517,-605.5,0.00014273,2]
[353555133,1739911846526,-500.0,0.00014273,2]
[353555134,1739911846536,-500.0,0.00014273,2]
[353555135,1739911846545,-500.0,0.00014273,2]
[353555136,1739911846555,-500.0,0.00014273,2]
[353555137,1739911846564,-500.0,0.00014273,2]
[353555138,1739911846573,-500.0,0.00014273,2]
[353555139,1739911846582,-972.6,0.00014273,2]
[353555140,1739911846592,-289.28215336,0.00014273,2]
[353555141,1739911846601,-1204.38,0.00014273,2]
[353555142,1739911846611,-500.0,0.00014273,2]
[353555143,1739911846621,-742.77,0.00014273,2]
[353555144,1739911846630,-652.29,0.00014273,2]
[353555145,1739911846640,-575.71852935,0.00014273,2]
[353555146,1739911846650,-500.0,0.00014273,2]
[353555147,1739911846660,-7626.98,0.00014273,2]
[353555148,1739911846669,-500.0,0.00014273,2]
[353555149,1739911846678,-1143.16,0.00014273,2]
[353555150,1739911846688,-2611.08,0.00014273,2]
[353555151,1739911846698,-19236.83,0.00014273,2]
[353555152,1739911846708,-583.56,0.00014273,2]
[353555153,1739911846718,-520.31,0.00014273,2]
[353555154,1739911846727,-803.65,0.00014273,2]
[353555155,1739911846737,-1534.37,0.00014273,2]
[353555156,1739911846747,-500.0,0.00014273,2]
[353555157,1739911846756,-1344.1,0.00014273,2]
[353555158,1739911846766,-2802.64,0.00014273,2]
[353555159,1739911846775,-500.0,0.00014273,2]
[353555160,1739911846784,-500.0,0.00014273,2]
[353555161,1739911846793,-500.0,0.00014273,2]
[353555162,1739911846802,-1530.52,0.00014273,2]
[353555163,1739911846811,-3919.27,0.00014273,2]
[353555164,1739911846820,-1626.48,0.00014273,2]
[353555165,1739911846830,-500.0,0.00014273,2]
[353555166,1739911846839,-613.82,0.00014273,2]
[353555167,1739911846849,-728.07,0.00014273,2]
[353555168,1739911846859,-500.0,0.00014273,2]
[353555169,1739911846869,-500.0,0.00014273,2]
[353555170,1739911846879,-536.5,0.00014273,2]
[353555171,1739911846889,-719.26,0.00014273,2]
[353555172,1739911846898,-702.77,0.00014273,2]
[353555173,1739911846907,-500.0,0.00014273,2]
[353555174,1739911846917,-500.0,0.00014273,2]
[353555175,1739911846926,-554.74,0.00014273,2]
[353555176,1739911846936,-500.0,0.00014273,2]
[353555177,1739911846946,-500.0,0.00014273,2]
[353555178,1739911846956,-1843.09,0.00014273,2]
[353555179,1739911846965,-500.0,0.00014273,2]
[353555180,1739911846975,-954.34,0.00014273,2]
[353555181,1739911846984,-810.51,0.00014273,2]
[353555182,1739911846993,-500.0,0.00014356,2]
[353555183,1739911847001,-500.0,0.00014356,2]
[353555184,1739911847012,-505.45,0.00014356,2]
[353555185,1739911847021,-500.0,0.00014356,2]
[353555186,1739911847031,-537.93,0.00014356,2]
[353555187,1739911847040,-610.18,0.00014356,2]
[353555188,1739911847048,-500.0,0.00014356,2]
[353555189,1739911847058,-500.0,0.00014356,2]
[353555190,1739911847067,-500.0,0.00014356,2]
[353555191,1739911847077,-500.0,0.00014356,2]
[353555192,1739911847087,-500.0,0.00014356,2]
[353555193,1739911847097,-500.0,0.00014356,2]
[353555194,1739911847107,-500.0,0.00014356,2]
[353555195,1739911847117,-723.16,0.00014356,2]
[353555196,1739911847126,-500.0,0.00014356,2]
[353555197,1739911847136,-605.5,0.00014356,2]
[353555198,1739911847146,-500.0,0.00014356,2]
[353555199,1739911847159,-500.0,0.00014356,2]
[353555200,1739911847258,-418.51,0.00014356,2]
[353555201,1739911847269,-500.0,0.00014356,2]
[353555202,1739911847279,-500.0,0.00014356,2]
[353555203,1739911847289,-500.0,0.00014356,2]
[353555204,1739911847299,-972.6,0.00014356,2]
[353555205,1739911847309,-1204.38,0.00014356,2]
[353555206,1739911847319,-500.0,0.00014356,2]
[353555207,1739911847329,-742.77,0.00014356,2]
[353555208,1739911847339,-652.29,0.00014356,2]
[353555209,1739911847349,-500.0,0.00014356,2]
[353555210,1739911847359,-7626.98,0.00014356,2]
[353555211,1739911847369,-1143.16,0.00014356,2]
[353555212,1739911847379,-2611.08,0.00014356,2]
[353555213,1739911847392,-19236.83,0.00014356,2]
[353555214,1739911847402,-583.56,0.00014356,2]
[353555215,1739911847412,-520.31,0.00014356,2]
[353555216,1739911847422,-803.65,0.00014356,2]
[353555217,1739911847431,-1534.37,0.00014356,2]
[353555218,1739911847441,-424.40892138,0.00014356,2]
[353555219,1739911847451,-1344.1,0.00014356,2]
[353555220,1739911847461,-2802.64,0.00014356,2]
[353555221,1739911847471,-500.0,0.00014356,2]
[353555222,1739911847480,-500.0,0.00014356,2]
[353555223,1739911847490,-500.0,0.00014356,2]
[353555224,1739911847499,-1530.52,0.00014356,2]
[353555225,1739911847509,-3919.27,0.00014356,2]
[353555226,1739911847518,-1626.48,0.00014356,2]
[353555227,1739911847528,-500.0,0.00014356,2]
[353555228,1739911847537,-613.82,0.00014356,2]
[353555229,1739911847546,-728.07,0.00014356,2]
[353555230,1739911847556,-500.0,0.00014356,2]
[353555231,1739911847566,-500.0,0.00014356,2]
[353555232,1739911847575,-536.5,0.00014356,2]
[353555233,1739911847585,-719.26,0.00014356,2]
[353555234,1739911847595,-702.77,0.00014356,2]
[353555235,1739911847605,-500.0,0.00014356,2]
[353555236,1739911847616,-500.0,0.00014356,2]
[353555237,1739911847626,-554.74,0.00014356,2]
[353555238,1739911847638,-500.0,0.00014356,2]
[353555239,1739911847648,-500.0,0.00014356,2]
[353555240,1739911847657,-1843.09,0.00014356,2]
[353555241,1739911847667,-500.0,0.00014356,2]
[353555242,1739911847677,-954.34,0.00014356,2]
[353555243,1739911847690,-810.51,0.00014356,2]
[353555244,1739911847700,-500.0,0.00014438,2]
[353555245,1739911847710,-505.45,0.00014438,2]
[353555246,1739911847719,-500.0,0.00014438,2]
[353555247,1739911847728,-537.93,0.00014438,2]
[353555248,1739911847737,-610.18,0.00014438,2]
[353555249,1739911847747,-500.0,0.00014438,2]
[353555250,1739911847757,-500.0,0.00014438,2]
[353555251,1739911847766,-500.0,0.00014438,2]
[353555252,1739911847777,-316.26,0.00014438,2]
[353555253,1739911847786,-500.0,0.00014438,2]
[353555254,1739911847796,-500.0,0.00014438,2]
[353555255,1739911847807,-500.0,0.00014438,2]
[353555256,1739911847817,-723.16,0.00014438,2]
[353555257,1739911847826,-500.0,0.00014438,2]
[353555258,1739911847836,-605.5,0.00014438,2]
[353555259,1739911847846,-500.0,0.00014438,2]
[353555260,1739911847856,-500.0,0.00014438,2]
[353555261,1739911847866,-500.0,0.00014438,2]
[353555262,1739911847876,-500.0,0.00014438,2]
[353555263,1739911847888,-500.0,0.00014438,2]
[353555264,1739911847899,-972.6,0.00014438,2]
[353555265,1739911847908,-1204.38,0.00014438,2]
[353555266,1739911847918,-384.75014643,0.00014438,2]
[353555267,1739911847928,-742.77,0.00014438,2]
[353555268,1739911847938,-652.29,0.00014438,2]
[353555269,1739911847948,-500.0,0.00014438,2]
[353555270,1739911847957,-7626.98,0.00014438,2]
[353555271,1739911847967,-1143.16,0.00014438,2]
[353555272,1739911847978,-2611.08,0.00014438,2]
[353555273,1739911847988,-19236.83,0.00014438,2]
[353555274,1739911847997,-583.56,0.00014438,2]
[353555275,1739911848008,-520.31,0.00014438,2]
[353555276,1739911848019,-803.65,0.00014438,2]
[353555277,1739911848029,-1534.37,0.00014438,2]
[353555278,1739911848041,-1344.1,0.00014438,2]
[353555279,1739911848051,-2802.64,0.00014438,2]
[353555280,1739911848062,-500.0,0.00014438,2]
[353555281,1739911848072,-500.0,0.00014438,2]
[353555282,1739911848082,-500.0,0.00014438,2]
[353555283,1739911848093,-1530.52,0.00014438,2]
[353555284,1739911848103,-3919.27,0.00014438,2]
[353555285,1739911848114,-1626.48,0.00014438,2]
[353555286,1739911848125,-500.0,0.00014438,2]
[353555287,1739911848135,-613.82,0.00014438,2]
[353555288,1739911848146,-728.07,0.00014438,2]
[353555289,1739911848162,-500.0,0.00014438,2]
[353555290,1739911848173,-500.0,0.00014438,2]
[353555291,1739911848182,-536.5,0.00014438,2]
[353555292,1739911848190,-719.26,0.00014438,2]
[353555293,1739911848199,-702.77,0.00014438,2]
[353555294,1739911848207,-500.0,0.00014438,2]
[353555295,1739911848216,-500.0,0.00014438,2]
[353555296,1739911848224,-554.74,0.00014438,2]
[353555297,1739911848234,-500.0,0.00014438,2]
[353555298,1739911848242,-500.0,0.00014438,2]
[353555299,1739911848251,-1843.09,0.00014438,2]
[353555300,1739911848260,-954.34,0.00014438,2]
[353555301,1739911848269,-810.51,0.00014438,2]
[353555302,1739911848276,-900.0,0.00014438,2]
[353555303,1739911848283,-500.0,0.0001452,2]
[353555304,1739911848290,-505.45,0.0001452,2]
[353555305,1739911848298,-500.0,0.0001452,2]
[353555306,1739911848305,-537.93,0.0001452,2]
[353555307,1739911848313,-610.18,0.0001452,2]
[353555308,1739911848320,-246.6,0.0001452,2]
[353555309,1739911848328,-500.0,0.0001452,2]
[353555310,1739911848335,-500.0,0.0001452,2]
[353555311,1739911848343,-500.0,0.0001452,2]
[353555312,1739911848350,-500.0,0.0001452,2]
[353555313,1739911848359,-500.0,0.0001452,2]
[353555314,1739911848367,-723.16,0.0001452,2]
[353555315,1739911848376,-500.0,0.0001452,2]
[353555316,1739911848383,-605.5,0.0001452,2]
[353555317,1739911848395,-500.0,0.0001452,2]
[353555318,1739911848404,-500.0,0.0001452,2]
[353555319,1739911848415,-500.0,0.0001452,2]
[353555320,1739911848425,-500.0,0.0001452,2]
[353555321,1739911848435,-417.65,0.0001452,2]
[353555322,1739911848444,-972.6,0.0001452,2]
[353555323,1739911848453,-1204.38,0.0001452,2]
[353555324,1739911848462,-742.77,0.0001452,2]
[353555325,1739911848470,-652.29,0.0001452,2]
[353555326,1739911848477,-500.0,0.0001452,2]
[353555327,1739911848487,-7626.98,0.0001452,2]
[353555328,1739911848497,-1143.16,0.0001452,2]
[353555329,1739911848505,-2611.08,0.0001452,2]
[353555330,1739911848513,-19236.83,0.0001452,2]
[353555331,1739911848521,-583.56,0.0001452,2]
[353555332,1739911848531,-520.31,0.0001452,2]
[353555333,1739911848541,-803.65,0.0001452,2]
[353555334,1739911848551,-1534.37,0.0001452,2]
[353555335,1739911848561,-1344.1,0.0001452,2]
[353555336,1739911848571,-2802.64,0.0001452,2]
[353555337,1739911848580,-500.0,0.0001452,2]
[353555338,1739911848591,-252.70756905,0.0001452,2]
[353555339,1739911848603,-500.0,0.0001452,2]
[353555340,1739911848614,-1530.52,0.0001452,2]
[353555341,1739911848625,-3919.27,0.0001452,2]
[353555342,1739911848636,-1626.48,0.0001452,2]
[353555343,1739911848648,-500.0,0.0001452,2]
[353555344,1739911848657,-613.82,0.0001452,2]
[353555345,1739911848667,-728.07,0.0001452,2]
[353555346,1739911848676,-500.0,0.0001452,2]
[353555347,1739911848686,-500.0,0.0001452,2]
[353555348,1739911848697,-536.5,0.0001452,2]
[353555349,1739911848707,-719.26,0.0001452,2]
[353555350,1739911848719,-702.77,0.0001452,2]
[353555351,1739911848729,-500.0,0.0001452,2]
[353555352,1739911848741,-354.92357979,0.0001452,2]
[353555353,1739911848752,-554.74,0.0001452,2]
[353555354,1739911848763,-500.0,0.0001452,2]
[353555355,1739911848773,-500.0,0.0001452,2]
[353555356,1739911848784,-1843.09,0.0001452,2]
[353555357,1739911848795,-954.34,0.0001452,2]
[353555358,1739911848805,-810.51,0.0001452,2]
[353555359,1739911848816,-150.0,0.00014522,2]
[353555360,1739911848827,-538.0,0.00014522,2]
[353555361,1739911848837,-1971.0,0.00014522,2]
[353555362,1739911848847,-2291.0,0.00014522,2]
[353555363,1739911848858,-150.0,0.00014522,2]
[353555364,1739911848869,-396.0,0.00014522,2]
[353555365,1739911848879,-1000.0,0.00014558,2]
[353555366,1739911848892,-500.0,0.00014602,2]
[353555367,1739911848902,-505.45,0.00014602,2]
[353555368,1739911848912,-500.0,0.00014602,2]
[353555369,1739911848922,-537.93,0.00014602,2]
[353555370,1739911848932,-610.18,0.00014602,2]
[353555371,1739911848943,-500.0,0.00014602,2]
[353555372,1739911848954,-500.0,0.00014602,2]
[353555373,1739911848965,-500.0,0.00014602,2]
[353555374,1739911848975,-500.0,0.00014602,2]
[353555375,1739911848986,-500.0,0.00014602,2]
[353555376,1739911848996,-723.16,0.00014602,2]
[353555377,1739911849007,-500.0,0.00014602,2]
[353555378,1739911849018,-605.5,0.00014602,2]
[353555379,1739911849028,-500.0,0.00014602,2]
[353555380,1739911849039,-500.0,0.00014602,2]
[353555381,1739911849049,-500.0,0.00014602,2]
[353555382,1739911849059,-500.0,0.00014602,2]
[353555383,1739911849069,-972.6,0.00014602,2]
[353555384,1739911849080,-1204.38,0.00014602,2]
[353555385,1739911849092,-742.77,0.00014602,2]
[353555386,1739911849103,-652.29,0.00014602,2]
[353555387,1739911849114,-500.0,0.00014602,2]
[353555388,1739911849125,-7626.98,0.00014602,2]
[353555389,1739911849136,-1143.16,0.00014602,2]
[353555390,1739911849148,-2611.08,0.00014602,2]
[353555391,1739911849163,-19236.83,0.00014602,2]
[353555392,1739911849173,-583.56,0.00014602,2]
[353555393,1739911849184,-520.31,0.00014602,2]
[353555394,1739911849194,-803.65,0.00014602,2]
[353555395,1739911849204,-1534.37,0.00014602,2]
[353555396,1739911849214,-1344.1,0.00014602,2]
[353555397,1739911849224,-2802.64,0.00014602,2]
[353555398,1739911849236,-500.0,0.00014602,2]
[353555399,1739911849247,-211.9222936,0.00014602,2]
[353555400,1739911849258,-1530.52,0.00014602,2]
[353555401,1739911849267,-3919.27,0.00014602,2]
[353555402,1739911849277,-1626.48,0.00014602,2]
[353555403,1739911849287,-500.0,0.00014602,2]
[353555404,1739911849297,-613.82,0.00014602,2]
[353555405,1739911849306,-728.07,0.00014602,2]
[353555406,1739911849317,-500.0,0.00014602,2]
[353555407,1739911849327,-500.0,0.00014602,2]
[353555408,1739911849337,-536.5,0.00014602,2]
[353555409,1739911849347,-719.26,0.00014602,2]
[353555410,1739911849359,-702.77,0.00014602,2]
[353555411,1739911849369,-500.0,0.00014602,2]
[353555412,1739911849380,-554.74,0.00014602,2]
[353555413,1739911849393,-500.0,0.00014602,2]
[353555414,1739911849403,-500.0,0.00014602,2]
[353555415,1739911849414,-1843.09,0.00014602,2]
[353555416,1739911849424,-954.34,0.00014602,2]
[353555417,1739911849434,-810.51,0.00014602,2]
[353555418,1739911849444,-1424.00008567,0.00014667,2]
[353555419,1739911849455,-500.0,0.00014684,2]
[353555420,1739911849465,-505.45,0.00014684,2]
[353555421,1739911849475,-500.0,0.00014684,2]
[353555422,1739911849485,-537.93,0.00014684,2]
[353555423,1739911849495,-610.18,0.00014684,2]
[353555424,1739911849506,-500.0,0.00014684,2]
[353555425,1739911849516,-500.0,0.00014684,2]
[353555426,1739911849526,-500.0,0.00014684,2]
[353555427,1739911849536,-500.0,0.00014684,2]
[353555428,1739911849646,-500.0,0.00014684,2]
[353555429,1739911849657,-723.16,0.00014684,2]
[353555430,1739911849673,-500.0,0.00014684,2]
[353555431,1739911849683,-605.5,0.00014684,2]
[353555432,1739911849693,-500.0,0.00014684,2]
[353555433,1739911849702,-500.0,0.00014684,2]
[353555434,1739911849712,-500.0,0.00014684,2]
[353555435,1739911849721,-370.04,0.00014684,2]
[353555436,1739911849732,-972.6,0.00014684,2]
[353555437,1739911849742,-1204.38,0.00014684,2]
[353555438,1739911849752,-742.77,0.00014684,2]
[353555439,1739911849762,-652.29,0.00014684,2]
[353555440,1739911849771,-500.0,0.00014684,2]
[353555441,1739911849781,-7626.98,0.00014684,2]
[353555442,1739911849791,-1143.16,0.00014684,2]
[353555443,1739911849800,-2611.08,0.00014684,2]
[353555444,1739911849811,-19236.83,0.00014684,2]
[353555445,1739911849820,-583.56,0.00014684,2]
[353555446,1739911849830,-520.31,0.00014684,2]
[353555447,1739911849839,-803.65,0.00014684,2]
[353555448,1739911849849,-1534.37,0.00014684,2]
[353555449,1739911849859,-1344.1,0.00014684,2]
[353555450,1739911849868,-2802.64,0.00014684,2]
[353555451,1739911849878,-500.0,0.00014684,2]
[353555452,1739911849889,-1530.52,0.00014684,2]
[353555453,1739911849899,-3919.27,0.00014684,2]
[353555454,1739911849909,-1626.48,0.00014684,2]
[353555455,1739911849918,-500.0,0.00014684,2]
[353555456,1739911849927,-613.82,0.00014684,2]
[353555457,1739911849937,-728.07,0.00014684,2]
[353555458,1739911849947,-500.0,0.00014684,2]
[353555459,1739911849957,-500.0,0.00014684,2]
[353555460,1739911849965,-536.5,0.00014684,2]